bitfinex/quotes_ETHUSD_20250110
["timestamp","ask_amount","ask_price","bid_price","bid_amount"]
[1736495285349,2.86239758,3313.3,3312.3,0.256]
[1736495285752,2.86239758,3313.3,3312.0,0.0075]
[1736495285753,2.86239758,3312.9,3310.7,2.86239758]
[1736495285952,3.01888,3312.5,3311.2,3.01996]
[1736495286173,3.61359758,3312.9,3311.5,0.015]
[1736495286693,3.01875,3312.7,3311.5,0.03019264]
[1736495286977,3.01813,3313.4,3312.0,3.01926]
[1736495287139,3.01813,3313.4,3311.7,0.015]
[1736495287140,3.16416558,3313.7,3312.5,0.015]
[1736495287345,3.319628,3313.7,3312.7,0.015]
[1736495287567,3.01788,3313.6,3312.7,0.015]
[1736495287799,3.01799,3313.5,3312.7,0.015]
[1736495288004,0.3319758,3313.5,3312.7,0.015]
[1736495288295,2.86239758,3313.7,3312.6,0.256]
[1736495288482,5.88021758,3313.7,3312.6,0.256]
[1736495288682,2.86239758,3313.7,3312.7,0.0075]
[1736495288995,3.01799,3313.5,3312.7,0.0075]
[1736495289382,6.01697,3314.6,3312.8,0.0075]
[1736495289383,0.7908,3314.4,3312.8,0.0075]
[1736495289700,0.7908,3314.4,3313.0,0.015]
[1736495289870,3.01735,3314.2,3313.0,0.015]
[1736495290074,3.01735,3314.2,3313.1,0.0075]
[1736495290276,3.01735,3314.2,3313.2,0.015]
[1736495290598,3.01695,3314.7,3313.5,0.0225]
[1736495290803,3.01695,3314.7,3313.7,0.0075]
[1736495290967,3.01702,3314.6,3313.7,0.0075]
[1736495291168,3.01699,3314.6,3313.7,0.0075]
[1736495291563,2.86239758,3315.0,3313.7,0.0075]
[1736495291765,2.86239758,3314.6,3313.7,0.0075]
[1736495292067,2.86239758,3314.6,3313.7,0.256]
[1736495292575,3.01735,3314.2,3313.7,0.256]
[1736495292787,2.86239758,3314.6,3313.7,0.256]
[1736495292990,3.01723,3314.3,3313.7,0.256]
[1736495293195,3.01742,3314.1,3313.7,0.256]
[1736495293775,0.301723,3314.2,3313.1,0.015]
[1736495293982,0.301723,3314.2,3313.2,0.256]
[1736495293983,3.01795,3313.6,3313.2,0.256]
[1736495294179,2.86239758,3313.8,3312.9,0.256]
[1736495294378,3.01807,3313.4,3312.9,0.256]
[1736495295078,3.01807,3313.4,3312.8,0.256]
[1736495295321,3.01815,3313.3,3312.8,0.256]
[1736495295525,3.01815,3313.3,3311.7,3.01952]
[1736495295526,3.01843,3313.0,3311.7,3.01952]
[1736495295706,0.301815,3313.2,3311.8,0.256]
[1736495295912,0.301815,3313.2,3311.5,3.01975]
[1736495295913,2.86239758,3313.0,3311.2,3.02]
[1736495296114,3.01886,3312.6,3311.3,0.28619356]
[1736495296428,3.01886,3312.6,3311.5,0.0075]
[1736495296629,3.01886,3312.6,3311.6,0.302731]
[1736495297194,3.01886,3312.6,3311.4,0.015]
[1736495297391,3.01886,3312.6,3310.4,6.31163639]
[1736495297392,2.86239758,3311.9,3310.4,6.31163639]
[1736495297729,2.86239758,3312.3,3310.5,0.256]
[1736495297887,2.86239758,3312.3,3311.1,3.02013]
[1736495297888,3.01906,3312.3,3311.1,3.02013]
[1736495298228,3.01898,3312.4,3311.3,3.04245]
[1736495298429,3.01898,3312.4,3311.5,0.015]
[1736495298589,3.01876,3312.7,3311.5,3.03472]
[1736495298790,0.7848,3313.0,3311.3,0.0075]
[1736495298791,0.7848,3313.0,3311.7,0.015]
[1736495299007,3.01886,3312.5,3311.7,0.015]
[1736495299192,0.55,3312.9,3311.5,0.015]
[1736495299395,3.0185,3313.0,3311.7,0.0225]
[1736495299623,2.86239758,3313.1,3311.7,3.04203]
[1736495299934,2.86239758,3313.1,3312.0,0.0075]
[1736495300132,3.320125,3313.2,3312.1,0.0075]
[1736495300293,3.320125,3313.2,3312.0,3.02682]
[1736495300294,3.01831,3313.2,3312.4,0.0075]
[1736495300639,3.01831,3313.2,3312.6,0.015]
[1736495300795,3.01785,3313.7,3312.7,0.0075]
[1736495300992,3.60587476,3313.7,3312.7,0.0075]
[1736495301193,0.58802476,3313.7,3312.7,0.03768368]
[1736495301390,0.776,3314.0,3312.9,0.0075]
[1736495301592,3.01764,3313.9,3313.1,0.0075]
[1736495301797,6.65563758,3314.3,3313.1,0.0075]
[1736495301798,3.63839758,3314.3,3313.1,0.0075]
[1736495302011,3.01779,3313.7,3313.1,0.0075]
[1736495302251,3.01841,3313.0,3312.5,0.256]
[1736495302452,3.01856,3312.9,3312.5,0.256]
[1736495302757,0.301841,3313.0,3312.5,0.256]
[1736495303232,1.326,3313.8,3312.6,0.0075]
[1736495303233,3.776,3313.8,3312.6,0.0075]
[1736495303533,3.01804,3313.4,3312.7,0.0075]
[1736495303931,3.01786,3313.6,3312.7,0.0075]
[1736495304139,0.55,3313.7,3312.7,0.0075]
[1736495304305,5.88006758,3313.9,3312.9,0.015]
[1736495304306,3.01763,3313.9,3312.9,0.015]
[1736495304508,3.01755,3314.0,3312.9,0.32101853]
[1736495304690,0.776,3314.2,3312.9,0.32101853]
[1736495304691,3.0176,3313.9,3312.9,0.32101853]
[1736495305238,0.776,3314.2,3312.9,3.35119815]
[1736495305436,3.0175,3314.0,3312.9,3.32101853]
[1736495305612,3.0175,3314.0,3313.2,0.0075]
[1736495305937,3.01732,3314.2,3313.2,0.0075]
[1736495306700,3.01728,3314.3,3313.2,0.0075]
[1736495307040,0.7695,3314.5,3313.4,0.0075]
[1736495307041,3.01706,3314.5,3313.4,0.0075]
[1736495307235,3.01706,3314.5,3313.5,0.271]
[1736495307434,3.01706,3314.5,3313.7,0.0225]
[1736495308415,3.01704,3314.5,3313.7,0.0225]
[1736495308739,3.01716,3314.4,3313.7,0.0225]
[1736495309442,0.36589976,3314.9,3313.7,0.0225]
[1736495309614,3.0165,3315.1,3313.7,0.0225]
[1736495309811,0.814,3316.0,3314.4,0.0075]
[1736495309812,2.86239758,3315.9,3314.4,0.0075]
[1736495310112,2.86239758,3315.9,3314.6,0.0075]
[1736495310113,3.0,3315.7,3314.6,0.0075]
[1736495310376,3.01658,3315.1,3314.5,0.2635]
[1736495310527,2.86239758,3315.5,3314.5,0.2635]
[1736495310712,2.86239758,3315.5,3313.7,0.3171072]
[1736495310713,0.7617,3315.1,3314.6,0.25]
[1736495311073,3.01701,3314.6,3314.1,0.25]
[1736495311210,0.55,3315.0,3314.1,0.25]
[1736495311405,0.55,3314.7,3314.1,0.25]
[1736495311616,3.01726,3314.3,3314.1,0.25]
[1736495311858,2.86239758,3314.2,3311.5,0.25]
[1736495312010,3.8263,3314.6,3312.5,3.90658991]
[1736495312011,3.01797,3313.5,3312.5,3.90658991]
[1736495312522,3.01777,3313.7,3312.6,0.04518248]
[1736495312726,3.01777,3313.7,3312.8,0.0075]
[1736495312910,2.86239758,3314.1,3312.8,0.0075]
[1736495312911,0.55,3314.0,3312.8,0.0075]
[1736495313243,3.01788,3313.6,3312.8,0.0075]
[1736495313602,0.55,3313.8,3312.8,0.015]
[1736495313820,3.01803,3313.5,3312.8,0.015]
[1736495314015,3.01803,3313.5,3312.9,0.015]
[1736495314223,3.01776,3313.8,3312.9,0.015]
[1736495314422,3.0175,3314.0,3313.1,0.0075]
[1736495314610,3.0175,3314.0,3313.3,0.0075]
[1736495315638,3.01727,3314.3,3313.5,0.0075]
[1736495315841,3.01704,3314.5,3313.7,0.0075]
[1736495316051,3.01758,3314.0,3313.8,0.25]
[1736495316749,3.400694,3314.4,3313.8,0.25]
[1736495316750,0.55,3314.3,3313.8,0.25]
[1736495316954,3.01759,3313.9,3313.8,0.25]
[1736495317152,3.01759,3313.9,3313.8,0.24670151]
[1736495317351,3.56759,3313.9,3313.8,0.24670151]
[1736495317518,4.21058876,3313.9,3313.8,0.24670151]
[1736495318157,3.01759,3313.9,3313.8,0.24670151]
[1736495319322,3.01741,3314.1,3313.8,0.24670151]
[1736495319617,3.01706,3314.5,3313.8,0.24670151]
[1736495319816,0.55,3314.3,3313.8,0.24670151]
[1736495320020,3.01759,3313.9,3313.4,0.25]
[1736495320653,3.01759,3313.9,3313.5,0.0075]
[1736495322162,3.01741,3314.1,3313.5,0.0075]
[1736495322492,3.01722,3314.3,3313.5,0.0075]
[1736495322646,3.01751,3314.0,3313.5,0.0075]
[1736495322840,0.658441,3314.2,3313.5,0.00418539]
[1736495323067,3.0176,3313.9,3313.5,0.00418539]
[1736495323385,3.0179,3313.6,3312.4,3.01894]
[1736495323541,3.0179,3313.6,3312.6,3.015]
[1736495323746,0.55,3313.8,3312.8,0.015]
[1736495324063,0.55,3313.8,3312.8,0.0075]
[1736495324265,3.56774,3313.8,3312.9,0.25]
[1736495324565,3.01801,3313.5,3312.4,0.0075]
[1736495324864,0.433135,3313.7,3312.6,0.0075]
[1736495324865,3.56786,3313.6,3312.6,0.0075]
[1736495325065,6.29553258,3313.7,3312.0,0.25]
[1736495325066,2.86239758,3312.8,3312.0,0.25]
[1736495325280,2.86239758,3312.8,3311.9,3.90658991]
[1736495325281,3.01883,3312.6,3311.9,3.90658991]
[1736495325477,3.01877,3312.6,3311.9,3.90658991]
[1736495325785,0.55,3312.7,3311.9,3.90658991]
[1736495326078,3.01888,3312.5,3311.9,3.65658991]
[1736495326301,2.86239758,3312.4,3311.9,3.65658991]
[1736495326584,0.55,3311.9,3309.9,3.02117]
[1736495326805,3.01969,3311.6,3310.4,0.25]
[1736495327080,0.55,3311.9,3310.4,0.25]
[1736495327246,3.01998,3311.3,3310.5,0.25]
[1736495327578,3.01998,3311.3,3310.6,0.25]
[1736495327775,2.77118,3311.3,3310.7,0.0075]
[1736495328585,2.77118,3311.3,3310.3,4.2395]
[1736495328586,2.77118,3311.3,3310.3,4.232]
[1736495328744,2.77118,3311.3,3310.8,0.25]
[1736495329176,0.7528,3311.6,3310.8,0.25]
[1736495329344,3.01988,3311.4,3310.8,0.25]
[1736495329608,3.61519758,3311.6,3310.4,0.4232]
[1736495329903,3.02006,3311.2,3310.9,0.25]
[1736495330209,3.02006,3311.2,3310.5,0.015]
[1736495330360,3.02024,3311.0,3310.5,0.0075]
[1736495330542,3.02024,3311.0,3310.6,0.25]
[1736495330744,3.02006,3311.2,3310.6,0.25]
[1736495330978,3.01951,3311.8,3310.9,0.015]
[1736495331400,3.01961,3311.7,3310.9,0.015]
[1736495331543,3.01961,3311.7,3310.5,0.0225]
[1736495331739,3.01987,3311.4,3310.7,0.0075]
[1736495331939,2.86239758,3312.0,3310.7,0.03020435]
[1736495332205,3.01956,3311.8,3310.8,0.0075]
[1736495332407,3.01971,3311.6,3310.9,0.25]
[1736495333023,0.55,3311.7,3310.9,0.25]
[1736495333146,3.01968,3311.6,3310.5,0.0075]
[1736495333348,3.01984,3311.5,3310.7,0.015]
[1736495334439,0.7852,3311.8,3309.3,3.28292189]
[1736495334440,3.67759758,3311.0,3309.3,3.28292189]
[1736495334692,3.0205,3310.8,3310.0,0.25]
[1736495334854,0.55,3310.9,3310.1,0.015]
[1736495335177,0.55,3310.9,3310.0,0.25]
[1736495335178,0.8152,3311.4,3310.5,0.0075]
[1736495335743,3.02005,3311.2,3310.3,0.0225]
[1736495335948,3.02005,3311.2,3310.5,0.0075]
[1736495336145,3.02077,3310.5,3309.3,3.53292189]
[1736495336349,2.86239758,3310.6,3309.3,3.53292189]
[1736495336350,2.86239758,3310.6,3309.3,3.28292189]
[1736495336545,3.0206,3310.6,3309.4,3.27169]
[1736495336793,0.8152,3311.4,3309.8,0.0075]
[1736495337083,3.01985,3311.5,3310.4,0.0075]
[1736495337281,3.02005,3311.2,3310.5,0.265]
[1736495337682,3.62959758,3311.8,3310.5,0.265]
[1736495337683,3.02016,3311.1,3310.5,0.265]
[1736495338483,3.62959758,3311.8,3310.5,0.265]
[1736495338484,3.02024,3311.0,3310.5,0.2575]
[1736495338683,0.7672,3311.3,3310.5,0.25]
[1736495338871,3.0206,3310.6,3310.5,0.25]
[1736495339071,3.02042,3310.8,3310.5,0.25]
[1736495339246,3.02004,3311.3,3310.6,0.015]
[1736495339651,3.02016,3311.1,3310.5,0.25]
[1736495340710,3.02037,3310.9,3310.5,0.25]
[1736495341507,0.55,3311.2,3310.5,0.25]
[1736495341665,0.8304,3310.8,3310.5,0.25]
[1736495341871,3.5706,3310.6,3310.5,0.25]
[1736495342067,0.55,3310.5,3310.2,0.251]
[1736495342404,0.8304,3310.0,3308.2,4.234]
[1736495342589,0.8304,3310.0,3307.3,8.99]
[1736495342590,3.02169,3309.4,3308.6,0.251]
[1736495342790,3.02152,3309.6,3308.7,0.251]
[1736495343103,3.0206,3310.6,3308.9,3.02215]
[1736495343290,2.86239758,3310.7,3309.2,0.0075]
[1736495343490,3.02123,3310.0,3309.2,0.0075]
[1736495344005,3.02123,3310.0,3309.3,0.266]
[1736495344315,3.02088,3310.3,3309.3,0.266]
[1736495344503,3.02088,3310.3,3309.5,0.015]
[1736495344910,3.0207,3310.5,3309.5,0.015]
[1736495345065,3.02078,3310.4,3309.7,0.015]
[1736495345465,3.02078,3310.4,3309.3,3.251]
[1736495345466,3.02078,3310.4,3309.4,0.03021352]
[1736495345674,3.02078,3310.4,3309.3,3.251]
[1736495346077,3.57061,3310.6,3309.4,0.05271352]
[1736495346380,3.0207,3310.5,3309.4,0.05271352]
[1736495346615,3.0205,3310.8,3309.7,3.02139]
[1736495347129,3.0205,3310.8,3309.9,0.0075]
[1736495347339,0.55,3311.0,3309.9,0.0075]
[1736495347472,3.02052,3310.7,3309.9,0.0075]
[1736495347672,3.02089,3310.3,3309.5,0.33254635]
[1736495347897,2.86239758,3310.7,3310.0,0.02932216]
[1736495348118,2.86239758,3311.1,3310.1,0.0075]
[1736495348325,0.55,3311.0,3310.1,0.0075]
[1736495348719,0.7811,3311.2,3310.0,0.0075]
[1736495348919,3.02015,3311.1,3310.0,0.0075]
[1736495349135,3.02015,3311.1,3310.2,0.0225]
[1736495349339,3.02015,3311.1,3310.4,0.0075]
[1736495349636,3.02015,3311.1,3310.5,0.02910881]
[1736495350007,3.02026,3311.0,3310.5,0.02910881]
[1736495350243,3.02026,3311.0,3310.4,0.015]
[1736495350616,3.02026,3311.0,3310.5,0.02910881]
[1736495351006,3.56987,3311.4,3310.5,0.02910881]
[1736495351007,0.55,3311.4,3310.6,0.0075]
[1736495351208,3.56995,3311.4,3310.7,0.0290997]
[1736495351539,3.02005,3311.2,3310.7,0.0290997]
[1736495352048,0.55,3311.4,3310.7,0.0290997]
[1736495352343,3.02041,3310.8,3310.7,0.0290997]
[1736495352645,3.02041,3310.8,3308.8,6.13457758]
[1736495352646,3.02041,3310.8,3310.5,0.251]
[1736495352941,2.86239758,3311.1,3309.9,0.0225]
[1736495353240,3.02034,3310.9,3310.5,0.251]
[1736495353641,3.02034,3310.9,3310.6,0.02755081]
[1736495353841,3.02041,3310.8,3310.6,0.02755081]
[1736495354015,3.02041,3310.8,3310.5,0.251]
[1736495354549,0.55,3311.0,3310.3,0.251]
[1736495354711,3.02051,3310.7,3310.6,0.02755081]
[1736495354914,3.02062,3310.6,3310.3,0.251]
[1736495355243,3.0209,3310.3,3310.1,0.251]
[1736495355442,0.55,3310.5,3310.0,0.251]
[1736495355672,3.02098,3310.2,3310.0,0.251]
[1736495355872,3.02105,3310.1,3309.7,0.49853867]
[1736495356177,3.02105,3310.1,3309.9,0.251]
[1736495356378,3.02088,3310.3,3309.9,0.251]
[1736495356538,3.02097,3310.2,3309.9,0.251]
[1736495357571,3.02107,3310.1,3309.9,0.251]
[1736495357772,3.02088,3310.3,3309.9,0.251]
[1736495358962,3.02097,3310.2,3309.9,0.251]
[1736495359160,3.02105,3310.1,3309.9,0.251]
[1736495359900,0.302097,3310.2,3309.1,0.251]
[1736495359901,0.55,3310.0,3309.1,0.251]
[1736495360112,2.86239758,3310.6,3309.2,0.015]
[1736495360374,3.0,3310.5,3309.3,0.0075]
[1736495360586,3.02025,3311.0,3310.0,0.0225]
[1736495360791,3.02025,3311.0,3310.2,0.015]
[1736495360976,0.41907976,3311.3,3310.2,0.015]
[1736495361190,3.02029,3311.0,3310.4,0.0075]
[1736495361596,0.55,3311.2,3310.2,0.0225]
[1736495361597,3.02007,3311.2,3310.2,0.0225]
[1736495361955,3.02007,3311.2,3310.4,0.0225]
[1736495362369,3.02013,3311.2,3310.4,0.0225]
[1736495362618,3.02014,3311.1,3310.4,0.0225]
[1736495364507,3.02014,3311.1,3310.2,0.22185466]
[1736495364927,0.7942,3311.9,3310.3,0.0225]
[1736495365084,3.0195,3311.8,3310.7,3.02047]
[1736495365287,3.0193,3312.1,3310.9,3.04279]
[1736495365485,3.0193,3312.1,3311.1,0.0225]
[1736495365837,3.0193,3312.1,3311.3,0.015]
[1736495366119,0.55,3312.1,3311.3,0.015]
[1736495366322,3.01952,3311.8,3311.1,0.0225]
[1736495366483,3.01962,3311.7,3311.4,0.251]
[1736495366803,3.01962,3311.7,3311.0,0.22185466]
[1736495366804,0.301962,3311.7,3311.0,0.47285466]
[1736495367128,3.02007,3311.2,3311.0,0.251]
[1736495367449,3.02014,3311.1,3311.0,0.251]
[1736495368129,3.01683066,3311.1,3311.0,0.151]
[1736495369103,0.55,3311.6,3310.3,0.0225]
[1736495369279,0.7968,3311.8,3310.5,0.0225]
[1736495369462,2.86239758,3312.2,3310.8,3.0]
[1736495369786,3.0195,3311.9,3311.0,0.0225]
[1736495370191,0.55,3311.8,3311.1,0.251]
[1736495370391,3.01977,3311.5,3311.1,0.251]
[1736495370806,3.01961,3311.7,3311.1,0.251]
[1736495371019,3.41239758,3311.8,3311.1,0.251]
[1736495371191,0.34123976,3311.7,3311.1,0.251]
[1736495371514,0.66820976,3312.1,3311.2,0.015]
[1736495371723,3.01937,3312.0,3311.2,0.015]
[1736495371917,3.01943,3311.9,3311.2,0.015]
[1736495372419,2.86239758,3311.8,3311.1,0.251]
[1736495372815,3.0196,3311.7,3311.1,0.251]
[1736495373144,3.01969,3311.6,3311.1,0.251]
[1736495373365,3.01935,3312.0,3311.2,0.0075]
[1736495373844,0.55,3311.9,3311.2,0.0075]
[1736495374335,3.01913,3312.3,3311.2,0.0225]
[1736495374541,5.86239758,3312.6,3311.1,0.251]
[1736495374542,3.01891,3312.5,3311.4,0.0225]
[1736495374715,3.60514976,3312.5,3311.4,0.0225]
[1736495375113,3.56896,3312.4,3311.4,0.0225]
[1736495375376,3.01915,3312.2,3311.2,3.0]
[1736495375865,3.01915,3312.2,3311.3,0.0225]
[1736495376401,0.55,3312.1,3311.1,0.251]
[1736495376638,3.0195,3311.8,3311.2,0.246]
[1736495376944,3.0197,3311.6,3310.5,3.02062]
[1736495377244,3.56986,3311.5,3310.6,0.246]
[1736495377423,2.86239758,3311.8,3310.7,0.015]
[1736495377424,3.56967,3311.7,3310.7,0.015]
[1736495377740,3.56979,3311.5,3310.7,0.0075]
[1736495377955,0.55,3311.5,3310.8,0.246]
[1736495378355,0.7548,3311.9,3310.8,0.246]
[1736495378555,3.01988,3311.4,3310.8,0.246]
[1736495378878,3.01993,3311.4,3310.8,0.246]
[1736495379168,3.02019,3311.1,3310.0,3.02114]
[1736495379524,0.8075,3311.2,3310.2,0.0075]
[1736495379703,3.02051,3310.7,3310.3,0.246]
[1736495380058,0.55,3310.8,3310.3,0.246]
[1736495380243,3.02063,3310.6,3310.3,0.246]
[1736495380631,3.02063,3310.6,3309.9,4.235]
[1736495380632,3.0207,3310.5,3309.9,4.235]
[1736495380843,3.02087,3310.3,3309.9,0.246]
[1736495381360,3.02087,3310.3,3309.8,0.246]
[1736495382539,3.65549758,3310.5,3309.8,0.246]
[1736495382863,3.0209,3310.3,3309.8,0.246]
[1736495383049,3.02099,3310.2,3309.8,0.246]
[1736495383879,0.66763976,3310.3,3309.2,0.0075]
[1736495383880,2.86239758,3310.1,3309.2,0.0075]
[1736495384052,3.02133,3309.8,3309.2,0.0075]
[1736495384377,5.88352758,3310.1,3309.2,0.015]
[1736495384581,5.88352758,3310.1,3309.1,0.246]
[1736495384582,3.02151,3309.6,3309.1,0.246]
[1736495384737,3.02179,3309.3,3307.9,4.235]
[1736495384942,3.02161,3309.5,3308.2,3.0227]
[1736495385263,3.02161,3309.5,3308.3,0.015]
[1736495385461,2.86239758,3309.7,3308.5,0.015]
[1736495385639,3.0217,3309.4,3308.5,0.015]
[1736495385836,2.86239758,3309.7,3307.9,4.235]
[1736495385837,3.02206,3309.0,3307.9,4.235]
[1736495386061,3.55,3309.6,3307.9,4.235]
[1736495386062,2.86239758,3308.9,3308.0,0.246]
[1736495386780,0.8088,3309.2,3308.1,0.015]
[1736495386945,3.8304,3309.5,3308.2,0.0075]
[1736495387146,0.8088,3309.5,3308.1,0.7821298]
[1736495387341,3.02179,3309.3,3308.1,0.7821298]
[1736495387547,3.02179,3309.3,3308.2,0.0225]
[1736495387749,0.8088,3309.5,3308.2,3.0452]
[1736495387953,3.83046,3309.5,3308.5,0.0075]
[1736495388152,3.0219,3309.2,3308.4,0.0075]
[1736495388370,3.0219,3309.2,3308.1,0.78212923]
[1736495388680,3.02197,3309.1,3308.2,0.0225]
[1736495389082,0.8088,3309.5,3308.2,0.0225]
[1736495389083,3.02179,3309.3,3308.2,0.0225]
[1736495389286,0.8088,3309.5,3308.5,0.0075]
[1736495389489,3.02151,3309.6,3308.5,0.0075]
[1736495389848,2.86239758,3309.7,3308.5,0.0075]
[1736495390050,0.7519,3310.6,3309.0,0.0225]
[1736495390399,3.0,3310.3,3309.2,0.015]
[1736495390609,2.86239758,3310.0,3309.1,0.246]
[1736495390752,2.86239758,3309.4,3308.1,0.751904]
[1736495391101,2.86239758,3309.4,3308.8,0.246]
[1736495391271,3.0218,3309.3,3308.8,0.246]
[1736495391472,2.86239758,3309.4,3308.8,0.246]
[1736495391673,3.02179,3309.3,3308.8,0.246]
[1736495392046,3.02188,3309.2,3308.1,0.751904]
[1736495392251,3.02188,3309.2,3308.2,0.246]
[1736495392469,3.02188,3309.2,3308.3,0.015]
[1736495393584,0.7753,3309.3,3308.3,0.015]
[1736495393585,2.86239758,3309.0,3308.3,0.246]
[1736495393912,3.30838976,3308.9,3308.3,0.246]
[1736495394271,3.30838976,3308.9,3307.7,0.0075]
[1736495394272,0.55,3308.8,3307.7,0.0075]
[1736495394499,3.02246,3308.6,3307.8,0.246]
[1736495395163,0.55,3308.8,3307.9,0.246]
[1736495395357,3.02255,3308.5,3307.9,0.246]
[1736495395557,3.02255,3308.5,3307.5,0.0225]
[1736495395858,1.19022398,3308.7,3307.9,0.246]
[1736495396287,3.02206,3309.0,3308.0,0.015]
[1736495396488,0.804,3309.1,3308.0,0.015]
[1736495396815,3.02234,3308.7,3307.9,0.246]
[1736495397154,5.88449758,3309.0,3308.0,0.015]
[1736495398399,3.02215,3308.9,3308.0,0.0075]
[1736495398609,3.02234,3308.7,3308.1,0.246]
[1736495398818,0.58845476,3308.8,3308.1,0.246]
[1736495399118,2.86239758,3309.0,3308.2,0.0075]
[1736495399259,3.82599,3309.1,3308.2,0.0075]
[1736495399597,3.02179,3309.3,3308.2,0.0225]
[1736495400291,3.45079734,3309.4,3308.1,0.246]
[1736495400496,3.45079734,3309.4,3308.3,3.02268]
[1736495400673,2.86239758,3309.4,3308.4,0.324768]
[1736495400871,6.02168,3309.5,3308.4,0.324768]
[1736495401071,2.86239758,3309.8,3308.6,0.0225]
[1736495401267,2.86239758,3309.8,3308.5,3.02248]
[1736495401471,3.02188,3309.2,3308.3,3.0]
[1736495401777,3.022,3309.1,3308.3,3.3246]
[1736495402170,3.022,3309.1,3308.4,0.0075]
[1736495402992,2.86239758,3309.4,3308.5,0.242]
[1736495403199,3.02211,3309.0,3308.5,0.242]
[1736495403567,3.02211,3309.0,3308.3,0.242]
[1736495404494,5.88410758,3309.4,3308.4,0.015]
[1736495404730,0.67110076,3309.3,3308.4,0.0075]
[1736495404888,3.02206,3309.0,3308.3,0.242]
[1736495405219,0.67110076,3309.3,3308.3,0.242]
[1736495405517,3.02214,3309.0,3308.3,0.242]
[1736495406444,3.67110076,3309.3,3308.3,0.242]
[1736495406737,3.67110076,3309.3,3307.4,3.0]
[1736495406738,3.02255,3308.5,3308.0,0.242]
[1736495407024,3.02288,3308.1,3306.9,3.1940327]
[1736495407193,5.88487758,3308.6,3307.3,0.242]
[1736495407392,3.0227,3308.3,3307.4,0.3662419]
[1736495407820,3.61099776,3308.6,3307.5,0.0225]
[1736495408024,3.02251,3308.6,3307.5,0.0225]
[1736495409043,3.02263,3308.4,3307.5,0.0225]
[1736495409221,3.63549758,3308.3,3307.2,3.42041897]
[1736495409528,3.02325,3307.7,3307.2,3.42041897]
[1736495409816,3.02334,3307.6,3307.2,3.42041897]
[1736495410379,6.93776058,3308.3,3307.2,3.42041897]
[1736495410380,3.02303,3308.0,3307.2,3.42041897]
[1736495410604,3.02325,3307.7,3307.2,3.42041897]
[1736495410809,3.02303,3308.0,3307.2,3.42041897]
[1736495410996,7.55705671,3308.3,3306.9,0.1700627]
[1736495410997,2.86239758,3307.5,3306.9,0.1700627]
[1736495411196,3.0,3307.4,3306.9,0.1700627]
[1736495411619,3.84868,3307.0,3306.9,0.1700627]
[1736495412185,6.84868,3307.0,3306.9,0.1700627]
[1736495412622,3.84868,3307.0,3306.9,0.1700627]
[1736495412826,0.7978,3307.3,3306.9,0.1700627]
[1736495413025,3.0237,3307.2,3306.9,0.1700627]
[1736495413197,3.02365,3307.3,3306.9,0.1700627]
[1736495414394,3.02339,3307.6,3306.9,0.1700627]
[1736495414995,3.16466058,3308.3,3306.9,0.1700627]
[1736495414996,3.02298,3308.0,3307.0,0.28377078]
[1736495415197,5.88509758,3308.3,3307.1,0.0075]
[1736495415483,2.86239758,3308.3,3307.2,0.015]
[1736495415883,2.86239758,3308.3,3307.3,0.02818228]
[1736495415884,3.22467734,3308.3,3307.3,0.02818228]
[1736495416115,3.02317,3307.8,3307.0,0.242]
[1736495416312,2.86239758,3307.9,3307.4,0.02817772]
[1736495416623,3.02362,3307.3,3306.9,0.1700627]
[1736495416830,0.812,3307.8,3306.9,0.1700627]
[1736495417026,3.02358,3307.4,3306.9,0.1700627]
[1736495417327,0.812,3307.8,3307.0,0.0075]
[1736495417621,0.36227976,3308.3,3307.1,0.0075]
[1736495417622,3.02298,3308.0,3307.1,0.0075]
[1736495417825,3.02298,3308.0,3307.2,0.0075]
[1736495417998,3.02298,3308.0,3307.3,0.0075]
[1736495418399,3.02307,3307.9,3307.3,0.0075]
[1736495418598,3.02307,3307.9,3306.9,0.1700627]
[1736495418599,2.86239758,3307.9,3307.4,0.02806801]
[1736495418815,3.02335,3307.6,3307.4,0.02806801]
[1736495419019,3.02335,3307.6,3307.1,0.0075]
[1736495419391,3.02333,3307.7,3307.2,0.02807714]
[1736495419594,3.02316,3307.8,3307.2,0.02807714]
[1736495419793,5.88547758,3307.9,3306.9,0.1700627]
[1736495419992,6.55522534,3307.9,3307.3,0.02807257]
[1736495420192,5.88547758,3307.9,3307.0,0.015]
[1736495420413,5.88547758,3307.9,3307.4,0.02806801]
[1736495420615,3.02327,3307.7,3306.9,0.1700627]
[1736495421131,3.02336,3307.6,3307.0,0.02808627]
[1736495421318,3.02371,3307.2,3307.0,0.02808627]
[1736495421496,3.02371,3307.2,3306.9,0.1700627]
[1736495422029,3.326081,3307.2,3306.9,0.1700627]
[1736495422796,0.302371,3307.2,3306.9,0.1700627]
[1736495422996,3.02379,3307.2,3306.9,0.1700627]
[1736495423479,3.0238,3307.1,3306.9,0.1700627]
[1736495424407,2.86239758,3307.1,3306.9,0.1700627]
[1736495424614,3.02388,3307.0,3306.9,0.1700627]
[1736495424811,3.83563,3307.3,3306.9,0.1700627]
[1736495425030,0.7919,3307.7,3306.9,0.1700627]
[1736495425336,3.02336,3307.6,3307.0,0.02843852]
[1736495425693,3.02336,3307.6,3307.0,0.27043852]